[Event "*** Titled Tuesday Blitz AM"]
[Site "Chess.com"]
[Date "2020.01.07"]
[Round "7"]
[White "DrVelja"]
[Black "IMUltimateBeast"]
[Result "0-1"]
[WhiteElo "2698"]
[BlackElo "2622"]
[TimeControl "180+2"]
[EndTime "10:31:53 PST"]
[Termination "IMUltimateBeast won on time"]

1. e4 {[%clk 0:03:01.9]} 1... c5 {[%clk 0:03:00.6]} 2. Nf3 {[%clk 0:03:01.5]}
2... e6 {[%clk 0:03:02.3]} 3. d4 {[%clk 0:03:02.6]} 3... cxd4 {[%clk 0:03:01.6]}
4. Nxd4 {[%clk 0:03:04.5]} 4... Nf6 {[%clk 0:03:03.2]} 5. Nc3 {[%clk 0:03:05.5]}
5... Nc6 {[%clk 0:03:04.2]} 6. Nxc6 {[%clk 0:03:06.6]} 6... bxc6 {[%clk
0:03:05.1]} 7. e5 {[%clk 0:03:08.5]} 7... Nd5 {[%clk 0:03:06.6]} 8. Ne4 {[%clk
0:03:09.9]} 8... Qc7 {[%clk 0:03:07.9]} 9. f4 {[%clk 0:03:10.9]} 9... Qb6 {[%clk
0:03:09.6]} 10. c4 {[%clk 0:03:12]} 10... Bb4+ {[%clk 0:03:11.3]} 11. Ke2 {[%clk
0:03:13.1]} 11... f5 {[%clk 0:03:13]} 12. exf6 {[%clk 0:03:13.8]} 12... Nxf6
{[%clk 0:03:14.1]} 13. Be3 {[%clk 0:03:15.5]} 13... Qd8 {[%clk 0:03:15.4]} 14.
Nd6+ {[%clk 0:03:17.1]} 14... Bxd6 {[%clk 0:03:16.8]} 15. Qxd6 {[%clk 0:03:19]}
15... c5 {[%clk 0:03:18.2]} 16. Qxc5 {[%clk 0:03:11.4]} 16... Bb7 {[%clk
0:03:17.2]} 17. Rd1 {[%clk 0:03:00.9]} 17... Rc8 {[%clk 0:03:15.9]} 18. Qb4
{[%clk 0:02:53.3]} 18... Be4 {[%clk 0:03:16.1]} 19. b3 {[%clk 0:02:25.1]} 19...
a5 {[%clk 0:03:12.7]} 20. Qd6 {[%clk 0:02:15.4]} 20... Rc6 {[%clk 0:02:34.1]}
21. Qd4 {[%clk 0:02:08.8]} 21... O-O {[%clk 0:02:28.1]} 22. Rg1 {[%clk
0:02:06.6]} 22... d5 {[%clk 0:02:26.9]} 23. g4 {[%clk 0:02:00]} 23... Qc7 {[%clk
0:02:19.6]} 24. c5 {[%clk 0:00:54.7]} 24... Nd7 {[%clk 0:02:12.7]} 25. Rc1
{[%clk 0:00:46.6]} 25... Rb8 {[%clk 0:01:53.8]} 0-1

[Event "*** Titled Tuesday Blitz AM"]
[Site "Chess.com"]
[Date "2020.01.07"]
[Round "7"]
[White "Region_07"]
[Black "nouma78"]
[Result "0-1"]
[WhiteElo "2380"]
[BlackElo "2531"]
[TimeControl "180+2"]
[EndTime "10:31:53 PST"]
[Termination "nouma78 won on time"]

1. d4 {[%clk 0:02:54.9]} 1... d6 {[%clk 0:03:00.3]} 2. e4 {[%clk 0:02:52.7]}
2... Nf6 {[%clk 0:02:59.1]} 3. Nc3 {[%clk 0:02:53.6]} 3... e5 {[%clk 0:02:53]}
4. Nf3 {[%clk 0:02:47.3]} 4... Nbd7 {[%clk 0:02:53.4]} 5. Bc4 {[%clk 0:02:41.2]}
5... Be7 {[%clk 0:02:53.4]} 6. O-O {[%clk 0:02:41.2]} 6... O-O {[%clk
0:02:53.5]} 7. Qe2 {[%clk 0:02:40]} 7... exd4 {[%clk 0:02:53.9]} 8. Nxd4 {[%clk
0:02:40.2]} 8... Ne5 {[%clk 0:02:54.6]} 9. Bb3 {[%clk 0:02:38]} 9... c5 {[%clk
0:02:55.5]} 10. Nf5 {[%clk 0:02:38.9]} 10... Bxf5 {[%clk 0:02:55.8]} 11. exf5
{[%clk 0:02:40.8]} 11... Qd7 {[%clk 0:02:56.7]} 12. f4 {[%clk 0:02:37]} 12...
Nc6 {[%clk 0:02:57.6]} 13. g4 {[%clk 0:02:28.4]} 13... d5 {[%clk 0:02:58.3]} 14.
g5 {[%clk 0:02:22]} 14... c4 {[%clk 0:02:59.4]} 15. gxf6 {[%clk 0:02:21.5]}
15... Bxf6 {[%clk 0:03:00.5]} 16. Ba4 {[%clk 0:02:21.2]} 16... Qxf5 {[%clk
0:03:01.4]} 17. Bxc6 {[%clk 0:01:53.2]} 17... bxc6 {[%clk 0:03:01.2]} 18. Qf2
{[%clk 0:01:34.2]} 18... d4 {[%clk 0:02:50.3]} 19. Na4 {[%clk 0:01:22.8]} 19...
Rfe8 {[%clk 0:02:47.5]} 20. Bd2 {[%clk 0:01:23]} 20... Qxc2 {[%clk 0:02:45.5]}
21. Nc5 {[%clk 0:01:16.5]} 21... d3 {[%clk 0:02:40.8]} 22. Rac1 {[%clk
0:01:05.4]} 22... Qxb2 {[%clk 0:02:40.5]} 23. Rxc4 {[%clk 0:01:04.4]} 23... Re2
{[%clk 0:02:39.6]} 24. Nxd3 {[%clk 0:00:20]} 24... Qxd2 {[%clk 0:02:36.2]} 25.
Qf3 {[%clk 0:00:19.2]} 25... Rd8 {[%clk 0:01:58.6]} 0-1

[Event "*** Titled Tuesday Blitz AM"]
[Site "Chess.com"]
[Date "2020.01.07"]
[Round "7"]
[White "arminmusovic"]
[Black "Sjakkerntobi"]
[Result "1-0"]
[WhiteElo "2499"]
[BlackElo "2268"]
[TimeControl "180+2"]
[EndTime "10:31:54 PST"]
[Termination "arminmusovic won on time"]

1. a3 {[%clk 0:03:01.9]} 1... e5 {[%clk 0:02:57.5]} 2. Nc3 {[%clk 0:03:02.8]}
2... Nf6 {[%clk 0:02:56.7]} 3. d4 {[%clk 0:03:03.9]} 3... exd4 {[%clk
0:02:57.3]} 4. Qxd4 {[%clk 0:03:05.8]} 4... Nc6 {[%clk 0:02:59]} 5. Qa4 {[%clk
0:03:07.4]} 5... Bc5 {[%clk 0:02:51.7]} 6. Bg5 {[%clk 0:03:08.5]} 6... h6 {[%clk
0:02:52.3]} 7. Bh4 {[%clk 0:03:09]} 7... d6 {[%clk 0:02:28]} 8. Ne4 {[%clk
0:03:03.9]} 8... Bd4 {[%clk 0:02:28.7]} 9. c3 {[%clk 0:02:51.8]} 9... Be5 {[%clk
0:02:23.8]} 10. O-O-O {[%clk 0:02:32.2]} 10... g5 {[%clk 0:02:18.3]} 11. Bg3
{[%clk 0:02:26.1]} 11... O-O {[%clk 0:02:00.4]} 12. h4 {[%clk 0:02:10.5]} 12...
g4 {[%clk 0:01:58.2]} 13. Bxe5 {[%clk 0:01:43.2]} 13... Nxe5 {[%clk 0:02:00.1]}
14. f4 {[%clk 0:01:44.3]} 14... b5 {[%clk 0:01:42.9]} 15. Qd4 {[%clk 0:01:40.1]}
15... Ned7 {[%clk 0:01:14.5]} 16. g3 {[%clk 0:01:41.3]} 16... Bb7 {[%clk
0:01:11.3]} 17. Bg2 {[%clk 0:01:42.7]} 17... Nxe4 {[%clk 0:01:11]} 18. Bxe4
{[%clk 0:01:43.2]} 18... c5 {[%clk 0:01:06]} 19. Qd3 {[%clk 0:01:44.5]} 19...
Bxe4 {[%clk 0:00:58.6]} 20. Qxe4 {[%clk 0:01:45.1]} 20... Nf6 {[%clk 0:01:00.5]}
21. Qc6 {[%clk 0:01:35.2]} 1-0

[Event "*** Titled Tuesday Blitz AM"]
[Site "Chess.com"]
[Date "2020.01.07"]
[Round "7"]
[White "marabu44"]
[Black "cstevens1"]
[Result "0-1"]
[WhiteElo "2308"]
[BlackElo "2619"]
[TimeControl "180+2"]
[EndTime "10:31:59 PST"]
[Termination "cstevens1 won by resignation"]

1. f4 {[%clk 0:03:01.9]} 1... d5 {[%clk 0:03:00.4]} 2. Nf3 {[%clk 0:03:02.4]}
2... g6 {[%clk 0:03:01.6]} 3. c3 {[%clk 0:03:02.8]} 3... Bg7 {[%clk 0:03:02.9]}
4. d3 {[%clk 0:03:04.1]} 4... c5 {[%clk 0:03:01.7]} 5. Qc2 {[%clk 0:03:04.9]}
5... d4 {[%clk 0:03:02.8]} 6. Na3 {[%clk 0:02:59.1]} 6... Nc6 {[%clk 0:03:03.9]}
7. Nc4 {[%clk 0:03:00]} 7... Nh6 {[%clk 0:03:04.2]} 8. g3 {[%clk 0:02:59.5]}
8... Nf5 {[%clk 0:03:05.2]} 9. Bg2 {[%clk 0:03:00.2]} 9... O-O {[%clk
0:03:06.4]} 10. O-O {[%clk 0:03:00.4]} 10... Be6 {[%clk 0:03:07.5]} 11. Nce5
{[%clk 0:03:01.1]} 11... Nxe5 {[%clk 0:03:03.1]} 12. Nxe5 {[%clk 0:03:01.4]}
12... Bd5 {[%clk 0:03:04.4]} 13. c4 {[%clk 0:02:52.9]} 13... Bxg2 {[%clk
0:03:04.2]} 14. Kxg2 {[%clk 0:02:54.6]} 14... Qc7 {[%clk 0:03:03.9]} 15. Nf3
{[%clk 0:02:53.4]} 15... Qc6 {[%clk 0:03:00]} 16. a3 {[%clk 0:02:50.8]} 16... e5
{[%clk 0:02:58.8]} 17. b4 {[%clk 0:02:42]} 17... b6 {[%clk 0:02:54.8]} 18. fxe5
{[%clk 0:02:40.1]} 18... Bxe5 {[%clk 0:02:55.2]} 19. Kg1 {[%clk 0:02:36.7]}
19... Bg7 {[%clk 0:02:46.9]} 20. Ng5 {[%clk 0:02:27.3]} 20... Rae8 {[%clk
0:02:45.2]} 21. Ne4 {[%clk 0:02:23.7]} 21... Re6 {[%clk 0:02:43.3]} 22. bxc5
{[%clk 0:02:07.7]} 22... bxc5 {[%clk 0:02:43.2]} 23. Rb1 {[%clk 0:02:09.2]}
23... Nd6 {[%clk 0:02:20]} 24. Ng5 {[%clk 0:02:04]} 24... Re7 {[%clk 0:02:20.3]}
25. Bf4 {[%clk 0:02:02.3]} 25... Rfe8 {[%clk 0:02:14.5]} 26. Rf2 {[%clk
0:02:01.7]} 26... f5 {[%clk 0:02:02.6]} 27. Nh3 {[%clk 0:01:50.6]} 27... Nf7
{[%clk 0:02:00]} 28. Qd2 {[%clk 0:01:34.1]} 28... h6 {[%clk 0:01:59.6]} 29. Qd1
{[%clk 0:01:10.2]} 29... g5 {[%clk 0:01:27.5]} 30. Bc1 {[%clk 0:01:05.6]} 30...
Ne5 {[%clk 0:01:26.1]} 31. Rxf5 {[%clk 0:00:58.9]} 31... Ng4 {[%clk 0:01:26.5]}
32. Rf3 {[%clk 0:00:59.6]} 32... Rxe2 {[%clk 0:01:26.4]} 33. Nf2 {[%clk
0:00:57.6]} 33... Qxf3 {[%clk 0:01:26.6]} 0-1

[Event "*** Titled Tuesday Blitz AM"]
[Site "Chess.com"]
[Date "2020.01.07"]
[Round "7"]
[White "Alex_Molchanov"]
[Black "Zarikovs1999"]
[Result "1-0"]
[WhiteElo "2570"]
[BlackElo "2346"]
[TimeControl "180+2"]
[EndTime "10:32:01 PST"]
[Termination "Alex_Molchanov won on time"]

1. d4 {[%clk 0:03:01.9]} 1... Nf6 {[%clk 0:02:50.5]} 2. Nf3 {[%clk 0:03:01.5]}
2... e6 {[%clk 0:02:51]} 3. e3 {[%clk 0:02:59.5]} 3... b6 {[%clk 0:02:50.9]} 4.
Nbd2 {[%clk 0:02:59.4]} 4... Bb7 {[%clk 0:02:52.2]} 5. Bd3 {[%clk 0:03:00.9]}
5... d5 {[%clk 0:02:53.3]} 6. O-O {[%clk 0:03:01.8]} 6... Bd6 {[%clk 0:02:52.3]}
7. b3 {[%clk 0:03:03.1]} 7... O-O {[%clk 0:02:53.3]} 8. Bb2 {[%clk 0:03:04.7]}
8... Nbd7 {[%clk 0:02:54.1]} 9. Ne5 {[%clk 0:03:06]} 9... Ne4 {[%clk 0:02:52.2]}
10. f4 {[%clk 0:02:43.6]} 10... f5 {[%clk 0:02:19.4]} 11. Bxe4 {[%clk
0:02:33.9]} 11... fxe4 {[%clk 0:02:11]} 12. Qg4 {[%clk 0:02:25.5]} 12... Qe7
{[%clk 0:02:00.6]} 13. Nxd7 {[%clk 0:02:07.6]} 13... Qxd7 {[%clk 0:02:01.6]} 14.
c4 {[%clk 0:02:09.2]} 14... Qe7 {[%clk 0:01:53.5]} 15. Rac1 {[%clk 0:01:51.9]}
15... c5 {[%clk 0:01:37.8]} 16. Rf2 {[%clk 0:01:32.5]} 16... cxd4 {[%clk
0:01:06.2]} 17. Bxd4 {[%clk 0:01:30]} 17... Bc5 {[%clk 0:01:07.1]} 18. Bxc5
{[%clk 0:01:28.5]} 18... bxc5 {[%clk 0:01:06.1]} 19. cxd5 {[%clk 0:01:25]} 19...
exd5 {[%clk 0:01:03.3]} 20. f5 {[%clk 0:01:24.6]} 1-0

[Event "*** Titled Tuesday Blitz AM"]
[Site "Chess.com"]
[Date "2020.01.07"]
[Round "7"]
[White "ural58"]
[Black "PIwan"]
[Result "1-0"]
[WhiteElo "2372"]
[BlackElo "2510"]
[TimeControl "180+2"]
[EndTime "10:32:05 PST"]
[Termination "ural58 won on time"]

1. e4 {[%clk 0:03:01.9]} 1... e6 {[%clk 0:02:58.8]} 2. Qe2 {[%clk 0:03:02]} 2...
d5 {[%clk 0:03:00.7]} 3. exd5 {[%clk 0:03:02.8]} 3... Nf6 {[%clk 0:03:00.5]} 4.
Nc3 {[%clk 0:03:04.7]} 4... Bd6 {[%clk 0:02:47.8]} 5. d4 {[%clk 0:02:59]} 5...
O-O {[%clk 0:02:46.6]} 6. dxe6 {[%clk 0:02:49.2]} 6... Bxe6 {[%clk 0:02:43.1]}
7. Bg5 {[%clk 0:02:49.8]} 7... Re8 {[%clk 0:02:40.8]} 8. O-O-O {[%clk
0:02:48.5]} 8... Bg4 {[%clk 0:02:11.8]} 9. Bxf6 {[%clk 0:02:47]} 9... Bxe2
{[%clk 0:02:11.6]} 10. Bxd8 {[%clk 0:02:47.3]} 10... Bxd1 {[%clk 0:02:12.1]} 11.
Bxc7 {[%clk 0:02:46.2]} 11... Bxc7 {[%clk 0:01:42.3]} 12. Kxd1 {[%clk 0:02:47]}
12... Nc6 {[%clk 0:01:39.9]} 13. Nf3 {[%clk 0:02:46.8]} 13... Rad8 {[%clk
0:01:34.3]} 14. Bb5 {[%clk 0:02:47.5]} 14... Nxd4 {[%clk 0:01:20.3]} 15. Bxe8
{[%clk 0:02:47.8]} 15... Nxf3+ {[%clk 0:01:19.7]} 16. Kc1 {[%clk 0:02:30]} 16...
Bf4+ {[%clk 0:01:19.2]} 17. Kb1 {[%clk 0:02:30.8]} 17... Nd2+ {[%clk 0:01:20.7]}
18. Ka1 {[%clk 0:02:28.4]} 18... Rxe8 {[%clk 0:01:21.7]} 19. Nd5 {[%clk
0:02:13.5]} 19... Bh6 {[%clk 0:01:08.8]} 20. f4 {[%clk 0:01:54]} 20... Rd8
{[%clk 0:01:03.4]} 21. Re1 {[%clk 0:01:46.2]} 21... Kf8 {[%clk 0:00:57.8]} 22.
Re5 {[%clk 0:01:42.4]} 22... Nc4 {[%clk 0:00:57.5]} 23. Rh5 {[%clk 0:01:42]} 1-0

[Event "*** Titled Tuesday Blitz AM"]
[Site "Chess.com"]
[Date "2020.01.07"]
[Round "7"]
[White "Witik"]
[Black "JSPrepz"]
[Result "0-1"]
[WhiteElo "2667"]
[BlackElo "2804"]
[TimeControl "180+2"]
[EndTime "10:32:15 PST"]
[Termination "JSPrepz won on time"]

1. d4 {[%clk 0:02:58.3]} 1... Nf6 {[%clk 0:03:00.7]} 2. Bf4 {[%clk 0:02:57.1]}
2... c5 {[%clk 0:03:01.7]} 3. e3 {[%clk 0:02:58.1]} 3... d5 {[%clk 0:02:59.9]}
4. c3 {[%clk 0:02:59.2]} 4... Nc6 {[%clk 0:03:01.5]} 5. Nd2 {[%clk 0:03:00]}
5... cxd4 {[%clk 0:03:02.9]} 6. exd4 {[%clk 0:03:00.9]} 6... Bf5 {[%clk
0:03:04.8]} 7. Ngf3 {[%clk 0:03:01.8]} 7... e6 {[%clk 0:03:06.4]} 8. Nh4 {[%clk
0:03:03.1]} 8... Bd6 {[%clk 0:03:08.3]} 9. Bxd6 {[%clk 0:02:54.7]} 9... Qxd6
{[%clk 0:03:10.2]} 10. Nxf5 {[%clk 0:02:55.8]} 10... exf5 {[%clk 0:03:12.1]} 11.
Bd3 {[%clk 0:02:50.6]} 11... g6 {[%clk 0:03:07]} 12. O-O {[%clk 0:02:46.8]}
12... O-O {[%clk 0:03:08]} 13. Re1 {[%clk 0:02:21.6]} 13... Rae8 {[%clk
0:03:07.7]} 14. Qc2 {[%clk 0:02:20.4]} 14... Ne4 {[%clk 0:02:59.2]} 15. Nf1
{[%clk 0:02:13.6]} 15... Re7 {[%clk 0:02:56.9]} 16. f3 {[%clk 0:02:14]} 16...
Nf6 {[%clk 0:02:57.2]} 17. Qf2 {[%clk 0:02:13.7]} 17... Rfe8 {[%clk 0:02:57.6]}
18. Rxe7 {[%clk 0:02:13.6]} 18... Qxe7 {[%clk 0:02:59.5]} 19. Nd2 {[%clk
0:02:05.9]} 19... a6 {[%clk 0:02:59.6]} 20. Nb3 {[%clk 0:02:03.9]} 20... Nd7
{[%clk 0:02:52.9]} 21. Kf1 {[%clk 0:02:01.4]} 21... Qd6 {[%clk 0:02:52.4]} 22.
g3 {[%clk 0:01:56]} 22... b5 {[%clk 0:02:46.4]} 23. Re1 {[%clk 0:01:47.8]} 23...
Rb8 {[%clk 0:02:47.1]} 24. Qe3 {[%clk 0:01:34.8]} 24... a5 {[%clk 0:02:42.7]}
25. Kg2 {[%clk 0:00:49.3]} 25... b4 {[%clk 0:02:39]} 26. c4 {[%clk 0:00:43.2]}
26... a4 {[%clk 0:02:37.1]} 27. Nc5 {[%clk 0:00:44.3]} 27... dxc4 {[%clk
0:02:31.8]} 28. Bxc4 {[%clk 0:00:45.5]} 28... Nxd4 {[%clk 0:02:21.6]} 29. Nxd7
{[%clk 0:00:43.7]} 29... Qxd7 {[%clk 0:02:22.4]} 30. Qe7 {[%clk 0:00:43.9]}
30... Rb7 {[%clk 0:01:56.6]} 0-1

[Event "*** Titled Tuesday Blitz AM"]
[Site "Chess.com"]
[Date "2020.01.07"]
[Round "7"]
[White "TrimitziosP7"]
[Black "Flawless_Fighter"]
[Result "0-1"]
[WhiteElo "2704"]
[BlackElo "2481"]
[TimeControl "180+2"]
[EndTime "10:32:15 PST"]
[Termination "Flawless_Fighter won on time"]

1. Nf3 {[%clk 0:03:01.9]} 1... Nf6 {[%clk 0:03:00.5]} 2. c4 {[%clk 0:03:02.5]}
2... e6 {[%clk 0:03:01.8]} 3. b3 {[%clk 0:02:37.2]} 3... d5 {[%clk 0:03:01.8]}
4. Bb2 {[%clk 0:02:37]} 4... Be7 {[%clk 0:03:03.3]} 5. g3 {[%clk 0:02:37.3]}
5... O-O {[%clk 0:03:04.7]} 6. Bg2 {[%clk 0:02:34.9]} 6... b6 {[%clk 0:03:05.3]}
7. d3 {[%clk 0:02:30.2]} 7... Bb7 {[%clk 0:03:06.4]} 8. O-O {[%clk 0:02:14.2]}
8... c5 {[%clk 0:03:07.4]} 9. e3 {[%clk 0:02:08.5]} 9... Nc6 {[%clk 0:03:06.9]}
10. Qe2 {[%clk 0:02:02.1]} 10... Qc7 {[%clk 0:03:03.1]} 11. Nc3 {[%clk
0:01:57.8]} 11... Rad8 {[%clk 0:03:01.6]} 12. Rac1 {[%clk 0:01:44.3]} 12... Qb8
{[%clk 0:03:01]} 13. Rfd1 {[%clk 0:01:44.7]} 13... h6 {[%clk 0:03:00.8]} 14.
cxd5 {[%clk 0:01:44.3]} 14... Nxd5 {[%clk 0:02:41.1]} 15. Nxd5 {[%clk
0:01:44.1]} 15... Rxd5 {[%clk 0:02:33.3]} 16. d4 {[%clk 0:01:44.5]} 16... Rdd8
{[%clk 0:02:11.7]} 17. dxc5 {[%clk 0:01:29.5]} 17... Bxc5 {[%clk 0:02:11.6]} 18.
a3 {[%clk 0:01:28.7]} 18... a5 {[%clk 0:02:10.5]} 19. Nd2 {[%clk 0:01:21.9]}
19... Ne7 {[%clk 0:01:59.9]} 20. Ne4 {[%clk 0:01:18.8]} 20... Rxd1+ {[%clk
0:01:46.4]} 21. Rxd1 {[%clk 0:01:18.6]} 21... Qa8 {[%clk 0:01:38.8]} 22. Qg4
{[%clk 0:01:12.1]} 22... Nf5 {[%clk 0:01:21.3]} 0-1

[Event "*** Titled Tuesday Blitz AM"]
[Site "Chess.com"]
[Date "2020.01.07"]
[Round "7"]
[White "kinga2008"]
[Black "Ariadna_Atreides"]
[Result "1-0"]
[WhiteElo "1851"]
[BlackElo "2048"]
[TimeControl "180+2"]
[EndTime "10:32:21 PST"]
[Termination "kinga2008 won on time"]

1. e4 {[%clk 0:03:01.9]} 1... c5 {[%clk 0:03:00.2]} 2. Nf3 {[%clk 0:03:01.7]}
2... d6 {[%clk 0:03:01.3]} 3. c3 {[%clk 0:03:01.7]} 3... Nf6 {[%clk 0:02:59.1]}
4. d3 {[%clk 0:03:02.6]} 4... e6 {[%clk 0:02:58.5]} 5. Be3 {[%clk 0:03:02.5]}
5... Be7 {[%clk 0:02:56.6]} 6. Nbd2 {[%clk 0:03:03.6]} 6... O-O {[%clk 0:02:55]}
7. Be2 {[%clk 0:03:02.3]} 7... b6 {[%clk 0:02:56]} 8. O-O {[%clk 0:03:02.3]}
8... Bb7 {[%clk 0:02:57.4]} 9. Qc2 {[%clk 0:03:03.2]} 9... h6 {[%clk 0:02:52.4]}
10. d4 {[%clk 0:03:02.2]} 10... Nbd7 {[%clk 0:02:50.4]} 11. Bd3 {[%clk
0:02:56.5]} 11... cxd4 {[%clk 0:02:44.3]} 12. cxd4 {[%clk 0:02:45.8]} 12... e5
{[%clk 0:02:34.9]} 13. dxe5 {[%clk 0:02:40.8]} 13... dxe5 {[%clk 0:02:20.3]} 14.
Rad1 {[%clk 0:02:36.2]} 14... Nc5 {[%clk 0:02:00]} 15. Bxc5 {[%clk 0:02:28.8]}
15... Bxc5 {[%clk 0:01:57.3]} 16. Nxe5 {[%clk 0:02:28.1]} 16... Qe7 {[%clk
0:01:50.8]} 17. Nef3 {[%clk 0:02:20.8]} 17... Rac8 {[%clk 0:01:50]} 18. Qb1
{[%clk 0:02:20.4]} 18... Rfd8 {[%clk 0:01:47.3]} 19. Rfe1 {[%clk 0:02:08.3]}
19... Ng4 {[%clk 0:01:40.7]} 20. Rf1 {[%clk 0:01:52]} 20... Rd6 {[%clk
0:01:31.1]} 21. Be2 {[%clk 0:01:40.8]} 21... a5 {[%clk 0:01:26.1]} 22. h3 {[%clk
0:01:15.9]} 1-0

[Event "*** Titled Tuesday Blitz AM"]
[Site "Chess.com"]
[Date "2020.01.07"]
[Round "7"]
[White "sergeikim"]
[Black "Kubas1010"]
[Result "1-0"]
[WhiteElo "2448"]
[BlackElo "2581"]
[TimeControl "180+2"]
[EndTime "10:32:29 PST"]
[Termination "sergeikim won on time"]

1. d4 {[%clk 0:03:01.9]} 1... Nf6 {[%clk 0:03:00.6]} 2. c4 {[%clk 0:03:02.6]}
2... e6 {[%clk 0:02:58.3]} 3. Nc3 {[%clk 0:03:03.4]} 3... Bb4 {[%clk 0:02:58.9]}
4. Qc2 {[%clk 0:03:04.3]} 4... O-O {[%clk 0:02:59]} 5. a3 {[%clk 0:03:05.1]}
5... Bxc3+ {[%clk 0:02:59.3]} 6. Qxc3 {[%clk 0:03:06.7]} 6... b6 {[%clk
0:02:53.8]} 7. Nf3 {[%clk 0:03:07.3]} 7... c5 {[%clk 0:02:50.4]} 8. dxc5 {[%clk
0:03:07]} 8... bxc5 {[%clk 0:02:51.4]} 9. g3 {[%clk 0:03:07.2]} 9... Bb7 {[%clk
0:02:48.7]} 10. Bg2 {[%clk 0:03:07.9]} 10... d6 {[%clk 0:02:13.7]} 11. O-O
{[%clk 0:03:07.1]} 11... Ne4 {[%clk 0:02:11.3]} 12. Qc2 {[%clk 0:03:07.3]} 12...
Nd7 {[%clk 0:02:10]} 13. Ng5 {[%clk 0:02:58.6]} 13... Nxg5 {[%clk 0:02:08.2]}
14. Bxb7 {[%clk 0:02:58.2]} 14... Rb8 {[%clk 0:02:09]} 15. Bg2 {[%clk
0:02:58.2]} 15... h6 {[%clk 0:02:05.9]} 16. Rd1 {[%clk 0:02:55.4]} 16... Rb6
{[%clk 0:02:04.9]} 17. b4 {[%clk 0:02:51.1]} 17... e5 {[%clk 0:02:01.6]} 18. b5
{[%clk 0:02:49.4]} 18... Ne6 {[%clk 0:02:01.9]} 19. e3 {[%clk 0:02:48.8]} 19...
a6 {[%clk 0:02:02.2]} 20. a4 {[%clk 0:02:48.6]} 20... Rb8 {[%clk 0:02:02.6]} 21.
Bd2 {[%clk 0:02:45.5]} 21... Qc7 {[%clk 0:02:00.5]} 22. Bc3 {[%clk 0:02:42.8]}
22... axb5 {[%clk 0:01:58.6]} 23. axb5 {[%clk 0:02:41.5]} 23... Nb6 {[%clk
0:01:58.8]} 24. Ba5 {[%clk 0:02:37.3]} 24... Rfd8 {[%clk 0:01:50.7]} 25. Qd3
{[%clk 0:02:32.1]} 25... Qe7 {[%clk 0:01:48.4]} 26. Bxb6 {[%clk 0:02:20.9]}
26... Rxb6 {[%clk 0:01:49.1]} 27. Ra5 {[%clk 0:02:18.6]} 27... Nc7 {[%clk
0:01:48.8]} 28. Rda1 {[%clk 0:02:18.2]} 28... Re8 {[%clk 0:01:44.7]} 29. Ra7
{[%clk 0:02:13.8]} 29... Qd8 {[%clk 0:01:42.7]} 30. Bc6 {[%clk 0:02:08.2]} 30...
Rf8 {[%clk 0:01:30.7]} 31. Rd1 {[%clk 0:01:58.1]} 31... Qb8 {[%clk 0:01:29.5]}
32. Rda1 {[%clk 0:01:53.6]} 1-0

[Event "*** Titled Tuesday Blitz AM"]
[Site "Chess.com"]
[Date "2020.01.07"]
[Round "7"]
[White "enzovsky"]
[Black "mortngabriel"]
[Result "1-0"]
[WhiteElo "2229"]
[BlackElo "2373"]
[TimeControl "180+2"]
[EndTime "10:32:33 PST"]
[Termination "enzovsky won on time"]

1. e4 {[%clk 0:03:01.9]} 1... c6 {[%clk 0:02:59.5]} 2. d4 {[%clk 0:02:48.6]}
2... d5 {[%clk 0:03:01.4]} 3. e5 {[%clk 0:02:50.1]} 3... c5 {[%clk 0:02:59]} 4.
dxc5 {[%clk 0:02:51]} 4... e6 {[%clk 0:02:55.5]} 5. a3 {[%clk 0:02:47.7]} 5...
Bxc5 {[%clk 0:02:54.4]} 6. b4 {[%clk 0:02:46.7]} 6... Be7 {[%clk 0:02:48.4]} 7.
Nf3 {[%clk 0:02:43.9]} 7... Nh6 {[%clk 0:02:43]} 8. c4 {[%clk 0:02:33.5]} 8...
dxc4 {[%clk 0:02:35.2]} 9. Qxd8+ {[%clk 0:02:32.7]} 9... Bxd8 {[%clk 0:02:36]}
10. Bxc4 {[%clk 0:02:33.5]} 10... Bc7 {[%clk 0:02:30]} 11. Bxh6 {[%clk
0:02:27.3]} 11... gxh6 {[%clk 0:02:30.6]} 12. O-O {[%clk 0:02:26.3]} 12... Nd7
{[%clk 0:02:13.5]} 13. Re1 {[%clk 0:02:24.7]} 13... a6 {[%clk 0:02:13]} 14. Nc3
{[%clk 0:02:20.3]} 14... b5 {[%clk 0:02:12.7]} 15. Bd3 {[%clk 0:02:15.8]} 15...
Bb7 {[%clk 0:02:06.2]} 16. Ne4 {[%clk 0:02:09.7]} 16... Nxe5 {[%clk 0:02:01.4]}
17. Nxe5 {[%clk 0:02:08.7]} 17... Bxe5 {[%clk 0:02:02.2]} 18. Rac1 {[%clk
0:02:05.4]} 18... Bf4 {[%clk 0:01:53.5]} 19. Rc2 {[%clk 0:01:46]} 19... Ke7
{[%clk 0:01:46.9]} 20. g3 {[%clk 0:01:44.7]} 20... Bb8 {[%clk 0:01:28.9]} 21.
Nc5 {[%clk 0:01:38.1]} 21... Bd5 {[%clk 0:01:27]} 22. Rd1 {[%clk 0:01:33.2]}
22... Ba7 {[%clk 0:01:03.7]} 23. Nxa6 {[%clk 0:01:04.8]} 1-0